fUST/lending_fUST_20250601
["ID","MTS","AMOUNT","RATE_DAILY","PERIOD"]
[363440204,1748723466393,-158.4581234,0.00022493,2]
[363440205,1748723466403,-176.4540852,0.00022493,2]
[363440206,1748723466413,-291.445632,0.00022493,2]
[363440207,1748723466422,-153.0,0.00022493,2]
[363440208,1748723466433,-176.4540852,0.00022493,2]
[363440209,1748723466443,-158.4581234,0.00022493,2]
[363440210,1748723466452,-153.0,0.00022493,2]
[363440211,1748723466462,-917.0054233,0.00022493,2]
[363440212,1748723466472,-153.0,0.00022493,2]
[363440213,1748723466482,-176.4540852,0.00022493,2]
[363440214,1748723466492,-158.4581234,0.00022493,2]
[363440215,1748723466501,-158.4581234,0.00022493,2]
[363440216,1748723466511,-174.6075295,0.00022493,2]
[363440217,1748723466521,-153.0,0.00022493,2]
[363440218,1748723466531,-1144.5926006,0.00022493,2]
[363440219,1748723466541,-153.0,0.00022493,2]
[363440220,1748723466551,-9999.99999901,0.000225,2]
[363440221,1748723466560,-624.98162331,0.00022549,2]
[363440222,1748723466571,-500.0,0.0002256,2]
[363440223,1748723466580,-3441.23008103,0.00022564,2]
[363440224,1748723466590,-6000.0,0.000226,4]
[363440225,1748723466600,-10503.89,0.000226,2]
[363440226,1748723466609,-169.398669,0.00022603,2]
[363440227,1748723466624,-16673.81668541,0.0002266,2]
[363440228,1748723466647,-204.02062,0.0002266,7]
[363440229,1748723466665,-204.02062,0.0002266,7]
[363440230,1748723466684,-151.0,0.0002266,7]
[363440231,1748723466704,-151.0,0.0002266,7]
[363440232,1748723466722,-151.0,0.0002266,7]
[363440233,1748723466740,-151.0,0.0002266,7]
[363440234,1748723466758,-151.0,0.0002266,7]
[363440235,1748723466773,-151.0,0.0002266,7]
[363440236,1748723466791,-169.850088,0.0002266,7]
[363440237,1748723466811,-169.850088,0.0002266,7]
[363440238,1748723466828,-151.0,0.0002266,7]
[363440239,1748723466841,-151.0,0.0002266,7]
[363440240,1748723466861,-349.805213,0.0002266,7]
[363440241,1748723466876,-349.805213,0.0002266,7]
[363440242,1748723466893,-348.188617,0.0002266,7]
[363440243,1748723466906,-348.188617,0.0002266,7]
[363440244,1748723466922,-165.745473,0.0002266,7]
[363440245,1748723466938,-165.745473,0.0002266,7]
[363440246,1748723466953,-5000.0,0.00022697,2]
[363440247,1748723466967,-36725.97111395,0.000227,2]
[363440248,1748723466986,-298.55444843,0.000227,2]
[363440249,1748723467196,-430.0,0.00016438,2]
[363440250,1748723467207,-332.58186682,0.00016438,2]
[363440251,1748723467220,-97.41813318,0.00016438,2]
[363440252,1748723467230,-430.0,0.00016438,2]
[363440253,1748723467242,-470.0,0.00016438,2]
[363440254,1748723467253,-510.0,0.00016712,2]
[363440255,1748723467265,-430.0,0.00016712,2]
[363440256,1748723467276,-430.0,0.00016712,2]
[363440257,1748723467286,-430.0,0.00016986,2]
[363440258,1748723467296,-430.0,0.00016986,2]
[363440259,1748723467306,-547.71,0.0001726,2]
[363440260,1748723467315,-430.0,0.00019178,2]
[363440261,1748723467325,-430.0,0.00019452,2]
[363440262,1748723467335,-430.0,0.00019726,2]
[363440263,1748723467345,-430.0,0.0002,2]
[363440264,1748723467354,-430.0,0.00020273,2]
[363440265,1748723467365,-430.0,0.00020547,2]
[363440266,1748723467375,-430.0,0.00020821,2]
[363440267,1748723467385,-430.0,0.00021095,2]
[363440268,1748723467395,-360.44104053,0.000227,2]
[363440269,1748723467791,-430.0,0.00016438,2]
[363440270,1748723467802,-430.0,0.00016438,2]
[363440271,1748723467812,-426.63999999,0.00016438,2]
[363440272,1748723467824,-3.36000001,0.00016438,2]
[363440273,1748723467834,-430.0,0.00016712,2]
[363440274,1748723467844,-430.0,0.00016712,2]
[363440275,1748723467854,-430.0,0.00016712,2]
[363440276,1748723467864,-430.0,0.00016986,2]
[363440277,1748723467874,-430.0,0.00016986,2]
[363440278,1748723467883,-430.0,0.00016986,2]
[363440279,1748723467896,-430.0,0.0001726,2]
[363440280,1748723467907,-430.0,0.0001726,2]
[363440281,1748723467916,-430.0,0.00017534,2]
[363440282,1748723467926,-430.0,0.00017534,2]
[363440283,1748723467937,-484.8,0.00021369,2]
[363440284,1748723467946,-21400.77932115,0.000227,2]
[363440285,1748723468040,-1609.42739068,0.000227,2]
[363440286,1748723468052,-1264.75967926,0.000227,2]
[363440287,1748723468153,-430.0,0.00016438,2]
[363440288,1748723468163,-30.64002672,0.00016712,2]
[363440289,1748723468175,-399.35997328,0.00016712,2]
[363440290,1748723468184,-430.0,0.00016986,2]
[363440291,1748723468194,-430.0,0.0001726,2]
[363440292,1748723468204,-430.0,0.0001726,2]
[363440293,1748723468217,-430.0,0.00017534,2]
[363440294,1748723468227,-430.0,0.00017808,2]
[363440295,1748723468237,-379.72,0.00017808,2]
[363440296,1748723468246,-430.0,0.00017808,2]
[363440297,1748723468256,-2916.67448953,0.000227,2]
[363443921,1748724631874,-844.76062011,0.0001547,2]
[363443929,1748724632039,-945.0,0.0001547,2]
[363443931,1748724632055,-254.87,0.0001547,2]
[363443933,1748724632067,-2719.46916321,0.0001547,2]
[363443935,1748724632077,-156.587,0.00016428,2]
[363443937,1748724632087,-160.0,0.00016431,2]
[363443940,1748724632096,-335.80326892,0.00016437,2]
[363443942,1748724632105,-155.57247383,0.00016437,2]
[363443944,1748724632115,-300.0,0.00016437,2]
[363443946,1748724632125,-174.30874281,0.00016438,2]
[363443948,1748724632134,-430.0,0.00016438,2]
[363443950,1748724632143,-430.0,0.00016438,2]
[363443952,1748724632153,-430.0,0.00016438,2]
[363443954,1748724632163,-430.0,0.00016438,2]
[363443956,1748724632173,-430.0,0.00016438,2]
[363443958,1748724632183,-430.0,0.00016438,2]
[363443960,1748724632192,-430.0,0.00016438,2]
[363443962,1748724632202,-430.0,0.00016438,2]
[363443964,1748724632211,-430.0,0.00016438,2]
[363443966,1748724632221,-430.0,0.00016438,2]
[363443968,1748724632230,-430.0,0.00016438,2]
[363443970,1748724632240,-391.68518405,0.00016438,2]
[363443972,1748724632250,-430.0,0.00016438,2]
[363443974,1748724632260,-430.0,0.00016438,2]
[363443976,1748724632270,-430.0,0.00016438,2]
[363443978,1748724632281,-216.85609671,0.00016438,2]
[363443980,1748724632290,-430.0,0.00016438,2]
[363443982,1748724632301,-430.0,0.00016438,2]
[363443984,1748724632311,-430.0,0.00016438,2]
[363443986,1748724632321,-430.0,0.00016438,2]
[363443988,1748724632330,-540.0,0.00016438,2]
[363443990,1748724632339,-430.0,0.00016438,2]
[363443992,1748724632349,-430.0,0.00016438,2]
[363443994,1748724632359,-430.0,0.00016438,2]
[363443996,1748724632368,-430.0,0.00016438,2]
[363443998,1748724632378,-430.0,0.00016438,2]
[363444000,1748724632388,-430.0,0.00016438,2]
[363444002,1748724632397,-430.0,0.00016438,2]
[363444004,1748724632407,-430.0,0.00016438,2]
[363444006,1748724632416,-430.0,0.00016438,2]
[363444008,1748724632426,-430.0,0.00016438,2]
[363444010,1748724632435,-430.0,0.00016438,2]
[363444012,1748724632444,-430.0,0.00016438,2]
[363444014,1748724632454,-430.0,0.00016438,2]
[363444016,1748724632463,-430.0,0.00016438,2]
[363444018,1748724632473,-430.0,0.00016438,2]
[363444020,1748724632483,-430.0,0.00016438,2]
[363444022,1748724632493,-430.0,0.00016438,2]
[363444024,1748724632502,-430.0,0.00016438,2]
[363444026,1748724632513,-430.0,0.00016438,2]
[363444028,1748724632523,-289.36967264,0.00016438,2]
[363444030,1748724632533,-430.0,0.00016438,2]
[363444032,1748724632543,-430.0,0.00016438,2]
[363444034,1748724632554,-430.0,0.00016438,2]
[363444036,1748724632564,-430.0,0.00016438,2]
[363444038,1748724632573,-430.0,0.00016438,2]
[363444040,1748724632584,-430.0,0.00016438,2]
[363444042,1748724632593,-430.0,0.00016438,2]
[363444044,1748724632603,-430.0,0.00016438,2]
[363444047,1748724632613,-500.0,0.00016438,2]
[363444051,1748724632626,-336.09857775,0.00016438,2]
[363444053,1748724632636,-169.81917017,0.00016438,2]
[363444055,1748724632648,-260.18082983,0.00016438,2]
[363444057,1748724632658,-430.0,0.00016438,2]
[363444059,1748724632667,-430.0,0.00016438,2]
[363444061,1748724632676,-430.0,0.00016438,2]
[363444063,1748724632685,-430.0,0.00016438,2]
[363444065,1748724632696,-470.0,0.00016438,2]
[363444067,1748724632705,-470.0,0.00016438,2]
[363444069,1748724632715,-430.0,0.00016438,2]
[363444071,1748724632725,-470.0,0.00016438,2]
[363444073,1748724632734,-470.0,0.00016438,2]
[363444075,1748724632744,-470.0,0.00016438,2]
[363444077,1748724632754,-470.0,0.00016438,2]
[363444079,1748724632763,-470.0,0.00016438,2]
[363444081,1748724632773,-279.97918446,0.00016438,2]
[363444082,1748724632782,-430.0,0.00016438,2]
[363444084,1748724632791,-430.0,0.00016438,2]
[363444087,1748724632802,-470.0,0.00016438,2]
[363444089,1748724632812,-430.0,0.00016438,2]
[363444091,1748724632822,-470.0,0.00016438,2]
[363444093,1748724632832,-430.0,0.00016438,2]
[363444095,1748724632842,-470.0,0.00016438,2]
[363444097,1748724632852,-450.0,0.00016438,2]
[363444099,1748724632862,-430.0,0.00016438,2]
[363444101,1748724632871,-530.0,0.00016438,2]
[363444103,1748724632885,-430.0,0.00016438,2]
[363444105,1748724632894,-470.0,0.00016438,2]
[363444107,1748724632903,-430.0,0.00016438,2]
[363444109,1748724632914,-470.0,0.00016438,2]
[363444111,1748724632923,-470.0,0.00016438,2]
[363444113,1748724632933,-289.88325781,0.00016438,2]
[363444358,1748724637880,-7772.57448222,0.00016054,2]
[363444359,1748724637891,-506.45936768,0.00016054,2]
[363444360,1748724637902,-140.11674219,0.00016438,2]
[363444361,1748724637912,-470.0,0.00016438,2]
[363444362,1748724637922,-470.0,0.00016438,2]
[363444363,1748724637932,-430.0,0.00016438,2]
[363444364,1748724637943,-430.0,0.00016438,2]
[363444365,1748724637955,-430.0,0.00016438,2]
[363444366,1748724637965,-1553.21,0.00016438,2]
[363444367,1748724637977,-457.55,0.00016438,2]
[363444368,1748724637988,-112.66389013,0.00016438,2]
[363444369,1748724638000,-357.33610987,0.00016438,2]
[363444370,1748724638009,-267.38499062,0.00016438,2]
[363444371,1748724638022,-162.61500938,0.00016438,2]
[363444372,1748724638032,-430.0,0.00016438,2]
[363444373,1748724638041,-430.0,0.00016438,2]
[363444374,1748724638051,-430.0,0.00016438,2]
[363444375,1748724638061,-540.7,0.00016438,2]
[363444376,1748724638071,-430.0,0.00016438,2]
[363444377,1748724638080,-263.77,0.00016438,2]
[363444378,1748724638090,-430.0,0.00016438,2]
[363444379,1748724638099,-1518.25,0.00016438,2]
[363444380,1748724638109,-430.0,0.00016438,2]
[363444381,1748724638119,-499.78,0.00016438,2]
[363444382,1748724638128,-430.0,0.00016438,2]
[363444383,1748724638137,-470.0,0.00016438,2]
[363444384,1748724638147,-430.0,0.00016438,2]
[363444385,1748724638156,-430.0,0.00016438,2]
[363444386,1748724638166,-430.0,0.00016438,2]
[363444387,1748724638175,-430.0,0.00016438,2]
[363444388,1748724638185,-430.0,0.00016438,2]
[363444389,1748724638194,-430.0,0.00016438,2]
[363444390,1748724638204,-430.0,0.00016438,2]
[363444391,1748724638214,-799.21,0.00016438,2]
[363444392,1748724638223,-430.0,0.00016438,2]
[363444393,1748724638233,-1387.14,0.00016438,2]
[363444394,1748724638242,-511.93,0.00016438,2]
[363444395,1748724638252,-430.0,0.00016438,2]
[363444396,1748724638261,-472.1,0.00016438,2]
[363444397,1748724638271,-430.0,0.00016438,2]
[363444398,1748724638281,-430.0,0.00016438,2]
[363444399,1748724638291,-487.82,0.00016438,2]
[363444400,1748724638300,-430.0,0.00016438,2]
[363444401,1748724638310,-430.0,0.00016438,2]
[363444402,1748724638320,-430.0,0.00016438,2]
[363444403,1748724638330,-430.0,0.00016438,2]
[363444404,1748724638340,-430.0,0.00016438,2]
[363444405,1748724638349,-783.86,0.00016438,2]
[363444406,1748724638359,-867.63,0.00016438,2]
[363444407,1748724638369,-896.72,0.00016438,2]
[363444408,1748724638379,-430.0,0.00016438,2]
[363444409,1748724638388,-430.0,0.00016438,2]
[363444410,1748724638397,-763.33,0.00016438,2]
[363444411,1748724638407,-430.0,0.00016438,2]
[363444412,1748724638416,-430.0,0.00016438,2]
[363444413,1748724638425,-430.0,0.00016438,2]
[363444414,1748724638435,-1313.16,0.00016438,2]
[363444415,1748724638445,-658.46,0.00016438,2]
[363444416,1748724638456,-502.44,0.00016438,2]
[363444417,1748724638465,-226.143096,0.00016438,2]
[363444418,1748724638475,-190.0,0.00016438,2]
[363444419,1748724638485,-430.0,0.00016438,2]
[363444420,1748724638494,-430.0,0.00016438,2]
[363444421,1748724638504,-448.76,0.00016438,2]
[363444422,1748724638513,-430.0,0.00016438,2]
[363444423,1748724638523,-430.0,0.00016438,2]
[363444424,1748724638532,-470.0,0.00016438,2]
[363444425,1748724638542,-430.0,0.00016438,2]
[363444426,1748724638551,-195.40279732,0.00016438,2]
[363444427,1748724638560,-430.0,0.00016438,2]
[363444428,1748724638570,-430.0,0.00016438,2]
[363444429,1748724638579,-683.63,0.00016438,2]
[363444430,1748724638589,-430.0,0.00016438,2]
[363444431,1748724638598,-430.0,0.00016438,2]
[363444432,1748724638607,-430.0,0.00016438,2]
[363444433,1748724638617,-430.0,0.00016438,2]
[363444434,1748724638628,-1031.3,0.00016438,2]
[363444435,1748724638642,-1060.4,0.00016438,2]
[363444436,1748724638654,-500.0,0.00016438,2]
[363444437,1748724638664,-332.23135741,0.00016711,2]
[363444438,1748724638673,-430.0,0.00016712,2]
[363444439,1748724638682,-430.0,0.00016712,2]
[363444440,1748724638691,-532.23289541,0.00016712,2]
[363444441,1748724638701,-430.0,0.00016712,2]
[363444442,1748724638710,-430.0,0.00016712,2]
[363444443,1748724638719,-211.17063852,0.00016712,2]
[363444444,1748724638728,-430.0,0.00016712,2]
[363444445,1748724638737,-430.0,0.00016712,2]
[363444446,1748724638747,-430.0,0.00016712,2]
[363444447,1748724638756,-430.0,0.00016712,2]
[363444448,1748724638766,-430.0,0.00016712,2]
[363444449,1748724638776,-430.0,0.00016712,2]
[363444450,1748724638785,-430.0,0.00016712,2]
[363444451,1748724638795,-430.0,0.00016712,2]
[363444452,1748724638805,-430.0,0.00016712,2]
[363444453,1748724638814,-430.0,0.00016712,2]
[363444454,1748724638823,-430.0,0.00016712,2]
[363444455,1748724638833,-430.0,0.00016712,2]
[363444456,1748724638843,-430.0,0.00016712,2]
[363444457,1748724638852,-430.0,0.00016712,2]
[363444458,1748724638861,-430.0,0.00016712,2]
[363444459,1748724638871,-430.0,0.00016712,2]
[363444460,1748724638881,-178.15928826,0.00016712,2]
[363444461,1748724638891,-430.0,0.00016712,2]
[363444462,1748724638900,-430.0,0.00016712,2]
[363444463,1748724638910,-430.0,0.00016712,2]
[363444464,1748724638920,-430.0,0.00016712,2]
[363444465,1748724638930,-430.0,0.00016712,2]
[363444466,1748724638939,-430.0,0.00016712,2]
[363444467,1748724638948,-301.21,0.00016712,2]
[363444468,1748724638958,-450.0,0.00016712,2]
[363444469,1748724638967,-430.0,0.00016712,2]
[363444470,1748724638977,-430.0,0.00016712,2]
[363444471,1748724638986,-430.0,0.00016712,2]
[363444472,1748724638997,-430.0,0.00016712,2]
[363444473,1748724639007,-430.0,0.00016712,2]
[363444474,1748724639017,-430.0,0.00016712,2]
[363444475,1748724639026,-430.0,0.00016712,2]
[363444476,1748724639038,-430.0,0.00016712,2]
[363444477,1748724639048,-501.52746359,0.00016712,2]
[363444478,1748724639201,-245.15,0.00016712,2]
[363444479,1748724639211,-1553.21,0.00016712,2]
[363444480,1748724639221,-430.0,0.00016712,2]
[363444481,1748724639231,-550.0,0.00016712,2]
[363444482,1748724639241,-430.0,0.00016712,2]
[363444483,1748724639251,-540.7,0.00016712,2]
[363444484,1748724639261,-430.0,0.00016712,2]
[363444485,1748724639272,-1518.25,0.00016712,2]
[363444486,1748724639282,-430.0,0.00016712,2]
[363444487,1748724639293,-499.78,0.00016712,2]
[363444488,1748724639303,-430.0,0.00016712,2]
[363444489,1748724639314,-430.0,0.00016712,2]
[363444490,1748724639324,-430.0,0.00016712,2]
[363444491,1748724639335,-430.0,0.00016712,2]
[363444492,1748724639345,-430.0,0.00016712,2]
[363444493,1748724639355,-430.0,0.00016712,2]
[363444495,1748724639365,-799.21,0.00016712,2]
[363444497,1748724639375,-430.0,0.00016712,2]
[363444498,1748724639386,-1387.14,0.00016712,2]
[363444499,1748724639396,-511.93,0.00016712,2]
[363444500,1748724639406,-513.6,0.00016712,2]
[363444501,1748724639415,-472.1,0.00016712,2]
[363444502,1748724639425,-430.0,0.00016712,2]
[363444503,1748724639434,-430.0,0.00016712,2]
[363444504,1748724639444,-487.82,0.00016712,2]
[363444505,1748724639454,-288.09,0.00016712,2]
[363444506,1748724639463,-430.0,0.00016712,2]
[363444508,1748724639473,-430.0,0.00016712,2]
[363444510,1748724639482,-783.86,0.00016712,2]
[363444512,1748724639492,-867.63,0.00016712,2]
[363444513,1748724639501,-896.72,0.00016712,2]
[363444514,1748724639513,-430.0,0.00016712,2]
[363444515,1748724639523,-763.33,0.00016712,2]
[363444516,1748724639535,-430.0,0.00016712,2]
[363444517,1748724639544,-532.09,0.00016712,2]
[363444518,1748724639554,-1313.16,0.00016712,2]
[363444519,1748724639563,-658.46,0.00016712,2]
[363444520,1748724639573,-502.44,0.00016712,2]
[363444521,1748724639583,-430.0,0.00016712,2]
[363444522,1748724639593,-448.76,0.00016712,2]
[363444523,1748724639602,-430.0,0.00016712,2]
[363444524,1748724639612,-430.0,0.00016712,2]
[363444525,1748724639623,-430.0,0.00016712,2]
[363444526,1748724639632,-430.0,0.00016712,2]
[363444527,1748724639644,-683.63,0.00016712,2]
[363444528,1748724639653,-430.0,0.00016712,2]
[363444529,1748724639663,-430.0,0.00016712,2]
[363444530,1748724639674,-430.0,0.00016712,2]
[363444531,1748724639684,-1031.3,0.00016712,2]
[363444532,1748724639695,-1060.4,0.00016712,2]
[363444533,1748724639705,-226.13170922,0.00016986,2]
[363444534,1748724639718,-566.05103504,0.00016986,2]
[363444535,1748724639728,-430.0,0.00016986,2]
[363444537,1748724639739,-430.0,0.00016986,2]
[363444539,1748724639748,-430.0,0.00016986,2]
[363444541,1748724639758,-154.4213844,0.00016986,2]
[363444543,1748724639768,-430.0,0.00016986,2]
[363444545,1748724639779,-470.0,0.00016986,2]
[363444547,1748724639789,-430.0,0.00016986,2]
[363444549,1748724639799,-430.0,0.00016986,2]
[363444551,1748724639809,-430.0,0.00016986,2]
[363444553,1748724639818,-430.0,0.00016986,2]
[363444555,1748724639827,-430.0,0.00016986,2]
[363444557,1748724639836,-579.4,0.00016986,2]
[363444559,1748724639846,-151.66,0.00016986,2]
[363444561,1748724639855,-430.0,0.00016986,2]
[363444563,1748724639866,-430.0,0.00016986,2]
[363444565,1748724639878,-430.0,0.00016986,2]
[363444567,1748724639888,-570.0,0.00016986,2]
[363444569,1748724639897,-430.0,0.00016986,2]
[363444571,1748724639907,-430.0,0.00016986,2]
[363444573,1748724639916,-151.02126116,0.00016986,2]
[363444575,1748724639927,-430.0,0.00016986,2]
[363444577,1748724639937,-1553.21,0.00016986,2]
[363444579,1748724639947,-430.0,0.00016986,2]
[363444581,1748724639957,-430.0,0.00016986,2]
[363444583,1748724639968,-540.7,0.00016986,2]
[363444585,1748724639978,-561.75737556,0.00016986,2]
[363444587,1748724639987,-430.0,0.00016986,2]
[363444589,1748724639996,-499.78,0.00016986,2]
[363444591,1748724640006,-1518.25,0.00016986,2]
[363444593,1748724640015,-510.0,0.00016986,2]
[363444595,1748724640026,-430.0,0.00016986,2]
[363444597,1748724640036,-430.0,0.00016986,2]
[363444599,1748724640046,-430.0,0.00016986,2]
[363444601,1748724640056,-430.0,0.00016986,2]
[363444603,1748724640065,-430.0,0.00016986,2]
[363444605,1748724640074,-799.21,0.00016986,2]
[363444607,1748724640084,-430.0,0.00016986,2]
[363444609,1748724640095,-1387.14,0.00016986,2]
[363444611,1748724640104,-511.93,0.00016986,2]
[363444613,1748724640114,-472.1,0.00016986,2]
[363444615,1748724640123,-430.0,0.00016986,2]
[363444617,1748724640133,-430.0,0.00016986,2]
[363444619,1748724640142,-487.82,0.00016986,2]
[363444621,1748724640152,-430.0,0.00016986,2]
[363444623,1748724640161,-430.0,0.00016986,2]
[363444625,1748724640170,-783.86,0.00016986,2]
[363444627,1748724640179,-867.63,0.00016986,2]
[363444629,1748724640189,-896.72,0.00016986,2]
[363444630,1748724640198,-430.0,0.00016986,2]
[363444633,1748724640208,-763.33,0.00016986,2]
[363444634,1748724640217,-430.0,0.00016986,2]
[363444635,1748724640226,-1313.16,0.00016986,2]
[363444636,1748724640235,-658.46,0.00016986,2]
[363444637,1748724640244,-502.44,0.00016986,2]
[363444638,1748724640253,-470.0,0.00016986,2]
[363444639,1748724640262,-448.76,0.00016986,2]
[363444640,1748724640271,-331.54265223,0.00016986,2]
[363444641,1748724640281,-430.0,0.00016986,2]
[363444642,1748724640290,-430.0,0.00016986,2]
[363444643,1748724640299,-430.0,0.00016986,2]
[363444644,1748724640308,-683.63,0.00016986,2]
[363444645,1748724640317,-430.0,0.00016986,2]
[363444646,1748724640327,-430.0,0.00016986,2]
[363444647,1748724640336,-430.0,0.00016986,2]
[363444648,1748724640345,-1031.3,0.00016986,2]
[363444649,1748724640362,-1060.4,0.00016986,2]
[363444650,1748724640371,-411.70207163,0.00017259,2]
[363444651,1748724640382,-500.0,0.00017259,2]
[363444652,1748724640391,-500.0,0.00017259,2]
[363444653,1748724640400,-500.0,0.00017259,2]
[363444654,1748724640409,-500.0,0.00017259,2]
[363444655,1748724640418,-500.0,0.00017259,2]
[363444656,1748724640427,-500.0,0.00017259,2]
[363444657,1748724640436,-500.0,0.00017259,2]
[363444658,1748724640446,-500.0,0.00017259,2]
[363444659,1748724640455,-500.0,0.00017259,2]
[363444660,1748724640464,-500.0,0.00017259,2]
[363444661,1748724640474,-500.0,0.00017259,2]
[363444662,1748724640484,-500.0,0.00017259,2]
[363444663,1748724640494,-500.0,0.00017259,2]
[363444664,1748724640503,-500.0,0.00017259,2]
[363444665,1748724640513,-500.0,0.00017259,2]
[363444666,1748724640522,-484.32652948,0.00017259,2]
[363444667,1748724640532,-430.0,0.0001726,2]
[363444668,1748724640542,-195.9,0.0001726,2]
[363444669,1748724640552,-430.0,0.0001726,2]
[363444670,1748724640563,-430.0,0.0001726,2]
[363444671,1748724640573,-430.0,0.0001726,2]
[363444672,1748724640582,-430.0,0.0001726,2]
[363444673,1748724640592,-430.0,0.0001726,2]
[363444674,1748724640602,-430.0,0.0001726,2]
[363444675,1748724640611,-430.0,0.0001726,2]
[363444676,1748724640622,-430.0,0.0001726,2]
[363444677,1748724640633,-430.0,0.0001726,2]
[363444678,1748724640645,-1553.21,0.0001726,2]
[363444680,1748724640655,-430.0,0.0001726,2]
[363444682,1748724640665,-430.0,0.0001726,2]
[363444684,1748724640675,-540.7,0.0001726,2]
[363444686,1748724640685,-430.0,0.0001726,2]
[363444688,1748724640695,-499.78,0.0001726,2]
[363444690,1748724640704,-1518.25,0.0001726,2]
[363444692,1748724640715,-430.0,0.0001726,2]
[363444694,1748724640725,-430.0,0.0001726,2]
[363444697,1748724640734,-430.0,0.0001726,2]
[363444698,1748724640743,-430.0,0.0001726,2]
[363444700,1748724640753,-430.0,0.0001726,2]
[363444703,1748724640762,-799.21,0.0001726,2]
[363444705,1748724640772,-430.0,0.0001726,2]
[363444707,1748724640781,-1387.14,0.0001726,2]
[363444709,1748724640790,-511.93,0.0001726,2]
[363444711,1748724640799,-472.1,0.0001726,2]
[363444712,1748724640810,-430.0,0.0001726,2]
[363444716,1748724640830,-430.0,0.0001726,2]
[363444718,1748724640840,-487.82,0.0001726,2]
[363444720,1748724640850,-430.0,0.0001726,2]
[363444722,1748724640860,-430.0,0.0001726,2]
[363444724,1748724640870,-783.86,0.0001726,2]
[363444726,1748724640880,-867.63,0.0001726,2]
[363444728,1748724640889,-896.72,0.0001726,2]
[363444730,1748724640900,-430.0,0.0001726,2]
[363444732,1748724640910,-763.33,0.0001726,2]
[363444734,1748724640920,-430.0,0.0001726,2]
[363444736,1748724640930,-1313.16,0.0001726,2]
[363444738,1748724640940,-658.46,0.0001726,2]
[363444740,1748724640950,-502.44,0.0001726,2]
[363444742,1748724640960,-448.76,0.0001726,2]
[363444744,1748724640969,-430.0,0.0001726,2]
[363444746,1748724640979,-430.0,0.0001726,2]
[363444749,1748724640989,-430.0,0.0001726,2]
[363444751,1748724640999,-683.63,0.0001726,2]
[363444753,1748724641009,-430.0,0.0001726,2]
[363444755,1748724641019,-430.0,0.0001726,2]
[363444757,1748724641028,-430.0,0.0001726,2]
[363444759,1748724641038,-1031.3,0.0001726,2]
[363444761,1748724641047,-1060.4,0.0001726,2]
[363444762,1748724641058,-500.0,0.00017274,2]
[363444764,1748724641068,-151.952352,0.00017534,2]
[363444767,1748724641078,-163.216496,0.00017534,2]
[363444769,1748724641087,-163.216496,0.00017534,2]
[363444771,1748724641098,-151.0,0.00017534,2]
[363444773,1748724641109,-430.0,0.00017534,2]
[363444775,1748724641119,-430.0,0.00017534,2]